fUSD/lending_fUSD_20240223
["ID","MTS","AMOUNT","RATE_DAILY","PERIOD"]
[314943838,1708691466537,-500.0,0.00028356,2]
[314943839,1708691466547,-500.0,0.00028356,2]
[314943840,1708691466556,-516.55,0.00028356,2]
[314943841,1708691466566,-500.0,0.00028356,2]
[314943842,1708691466575,-692.0,0.00028356,2]
[314943843,1708691466585,-500.0,0.00028356,2]
[314943844,1708691466595,-1085.28,0.00028356,2]
[314943845,1708691466605,-2188.23,0.00028356,2]
[314943846,1708691466615,-500.0,0.00028356,2]
[314943847,1708691466625,-592.24,0.00028356,2]
[314943848,1708691466635,-838.28,0.00028356,2]
[314943849,1708691466644,-151.0,0.00028356,7]
[314943850,1708691466654,-500.0,0.00028356,2]
[314943851,1708691466664,-3195.13,0.00028356,2]
[314943852,1708691466673,-3378.46,0.00028356,2]
[314943853,1708691466682,-500.0,0.00028356,2]
[314943854,1708691466692,-151.0,0.00028356,7]
[314943855,1708691466701,-587.56,0.00028356,2]
[314943856,1708691466711,-2460.31,0.00028356,2]
[314943857,1708691466721,-826.6,0.00028356,2]
[314943858,1708691466730,-1648.46,0.00028356,2]
[314943859,1708691466739,-344.60014366,0.00028356,2]
[314943860,1708691466749,-500.0,0.00028356,2]
[314943861,1708691466759,-536.91,0.00028356,2]
[314943862,1708691466768,-289.9875487,0.00028356,2]
[314943863,1708691466778,-3457.82,0.00028356,2]
[314943864,1708691466787,-500.0,0.00028356,2]
[314943865,1708691466796,-661.28,0.00028356,2]
[314943866,1708691466806,-151.0,0.00028356,7]
[314943867,1708691466815,-500.0,0.00028356,2]
[314943868,1708691466825,-500.0,0.00028356,2]
[314943869,1708691466834,-500.0,0.00028356,2]
[314943870,1708691466843,-816.69,0.00028356,2]
[314943871,1708691466854,-151.0,0.00028356,7]
[314943872,1708691466863,-1895.05,0.00028356,2]
[314943873,1708691466873,-2058.22,0.00028356,2]
[314943874,1708691466883,-500.0,0.00028356,2]
[314943875,1708691466892,-500.0,0.00028356,2]
[314943876,1708691466901,-3825.2,0.00028356,2]
[314943877,1708691466910,-500.0,0.00028356,2]
[314943878,1708691466920,-1955.25,0.00028356,2]
[314943879,1708691466928,-151.0,0.00028356,7]
[314943880,1708691466937,-150.0,0.00028362,2]
[314943881,1708691466946,-2000.0,0.00028367,2]
[314943882,1708691466955,-200.0,0.00028367,2]
[314943883,1708691466964,-150.0,0.00028377,2]
[314943884,1708691466974,-2120.695823,0.000284,2]
[314943885,1708691466983,-150.0,0.0002841,2]
[314943886,1708691466993,-207.0,0.00028441,2]
[314943887,1708691467003,-402.0,0.00028441,2]
[314943888,1708691467013,-150.0,0.00028444,2]
[314943889,1708691467022,-150.0,0.0002848,2]
[314943890,1708691467031,-1422.80958493,0.00028483,2]
[314943891,1708691467041,-500.0,0.00028493,2]
[314943892,1708691467051,-500.0,0.00028493,2]
[314943893,1708691467060,-500.0,0.00028493,2]
[314943894,1708691467070,-556.58,0.00028493,2]
[314943895,1708691467079,-500.0,0.00028493,2]
[314943896,1708691467089,-500.0,0.00028493,2]
[314943897,1708691467102,-526.85,0.00028493,2]
[314943898,1708691467111,-680.43,0.00028493,2]
[314943899,1708691467121,-500.0,0.00028493,2]
[314943900,1708691467131,-518.64,0.00028493,2]
[314943901,1708691467141,-500.0,0.00028493,2]
[314943902,1708691467150,-500.0,0.00028493,2]
[314943903,1708691467159,-500.0,0.00028493,2]
[314943904,1708691467169,-500.0,0.00028493,2]
[314943905,1708691467179,-510.19,0.00028493,2]
[314943906,1708691467188,-500.0,0.00028493,2]
[314943907,1708691467198,-500.0,0.00028493,2]
[314943908,1708691467208,-500.0,0.00028493,2]
[314943909,1708691467217,-500.0,0.00028493,2]
[314943910,1708691467227,-500.0,0.00028493,2]
[314943911,1708691467236,-500.0,0.00028493,2]
[314943912,1708691467246,-244.08009156,0.00028493,2]
[314943913,1708691467256,-500.0,0.00028493,2]
[314943914,1708691467265,-500.0,0.00028493,2]
[314943915,1708691467275,-500.0,0.00028493,2]
[314943916,1708691467286,-378.81690341,0.00028493,2]
[314943917,1708691467295,-500.0,0.00028493,2]
[314943918,1708691467305,-500.0,0.00028493,2]
[314943919,1708691467315,-500.0,0.00028493,2]
[314943920,1708691467325,-500.0,0.00028493,2]
[314943921,1708691467335,-500.0,0.00028493,2]
[314943922,1708691467347,-500.0,0.00028493,2]
[314943923,1708691467357,-500.0,0.00028493,2]
[314943924,1708691467366,-168.35754133,0.00028493,2]
[314943925,1708691467375,-500.0,0.00028493,2]
[314943926,1708691467385,-500.0,0.00028493,2]
[314943927,1708691467394,-500.0,0.00028493,2]
[314943928,1708691467405,-500.0,0.00028493,2]
[314943929,1708691467415,-500.0,0.00028493,2]
[314943930,1708691467427,-221.48151026,0.00028493,2]
[314943931,1708691467437,-500.0,0.00028493,2]
[314943932,1708691467447,-150.0,0.00028493,2]
[314943933,1708691467457,-500.0,0.00028493,2]
[314943934,1708691467466,-500.0,0.00028493,2]
[314943935,1708691467476,-866.95,0.00028493,2]
[314943936,1708691467485,-500.0,0.00028493,2]
[314943937,1708691467495,-500.0,0.00028493,2]
[314943938,1708691467505,-712.13,0.00028493,2]
[314943939,1708691467514,-592.17,0.00028493,2]
[314943940,1708691467524,-500.0,0.00028493,2]
[314943941,1708691467533,-500.0,0.00028493,2]
[314943942,1708691467543,-500.0,0.00028493,2]
[314943943,1708691467552,-500.0,0.00028493,2]
[314943944,1708691467561,-500.0,0.00028493,2]
[314943945,1708691467571,-500.0,0.00028493,2]
[314943946,1708691467580,-744.85,0.00028493,2]
[314943947,1708691467591,-553.72225406,0.00028493,2]
[314943948,1708691467602,-500.0,0.00028493,2]
[314943949,1708691467612,-581.17,0.00028493,2]
[314943950,1708691467622,-500.0,0.00028493,2]
[314943951,1708691467631,-500.0,0.00028493,2]
[314943952,1708691467641,-500.0,0.00028493,2]
[314943953,1708691467650,-500.0,0.00028493,2]
[314943954,1708691467660,-1636.85,0.00028493,2]
[314943955,1708691467670,-500.0,0.00028493,2]
[314943956,1708691467680,-500.0,0.00028493,2]
[314943957,1708691467691,-413.13095152,0.00028493,2]
[314943958,1708691467701,-500.0,0.00028493,2]
[314943959,1708691467711,-500.0,0.00028493,2]
[314943960,1708691467721,-618.55,0.00028493,2]
[314943961,1708691467731,-1133.5,0.00028493,2]
[314943962,1708691467741,-651.3,0.00028493,2]
[314943963,1708691467751,-7441.6,0.00028493,2]
[314943964,1708691467761,-500.0,0.00028493,2]
[314943965,1708691467771,-500.0,0.00028493,2]
[314943966,1708691467781,-500.0,0.00028493,2]
[314943967,1708691467791,-661.63,0.00028493,2]
[314943968,1708691467800,-500.0,0.00028493,2]
[314943969,1708691467810,-830.11,0.00028493,2]
[314943970,1708691467819,-500.0,0.00028493,2]
[314943971,1708691467829,-966.94,0.00028493,2]
[314943972,1708691467839,-500.0,0.00028493,2]
[314943973,1708691467850,-500.0,0.00028493,2]
[314943974,1708691467859,-2440.4,0.00028493,2]
[314943975,1708691467869,-500.0,0.00028493,2]
[314943976,1708691467879,-500.0,0.00028493,2]
[314943977,1708691467888,-500.0,0.00028493,2]
[314943978,1708691467898,-500.0,0.00028493,2]
[314943979,1708691467907,-1120.79,0.00028493,2]
[314943980,1708691467917,-500.0,0.00028493,2]
[314943981,1708691467926,-1232.0,0.00028493,2]
[314943982,1708691467936,-500.0,0.00028493,2]
[314943983,1708691467946,-500.0,0.00028493,2]
[314943984,1708691467955,-499.36872702,0.00028493,2]
[314943985,1708691467965,-1278.68,0.00028493,2]
[314943986,1708691467975,-772.26,0.00028493,2]
[314943987,1708691467985,-500.0,0.00028493,2]
[314943988,1708691467994,-861.43,0.00028493,2]
[314943989,1708691468003,-500.0,0.00028493,2]
[314943990,1708691468013,-500.0,0.00028493,2]
[314943991,1708691468022,-774.07,0.00028493,2]
[314943992,1708691468032,-2030.05,0.00028493,2]
[314943993,1708691468042,-4219.83,0.00028493,2]
[314943994,1708691468051,-500.0,0.00028493,2]
[314943995,1708691468061,-702.02,0.00028493,2]
[314943996,1708691468070,-500.0,0.00028493,2]
[314943997,1708691468080,-500.0,0.00028493,2]
[314943998,1708691468089,-500.0,0.00028493,2]
[314943999,1708691468100,-579.27,0.00028493,2]
[314944000,1708691468110,-500.0,0.00028493,2]
[314944001,1708691468120,-1628.05,0.00028493,2]
[314944002,1708691468129,-500.0,0.00028493,2]
[314944003,1708691468139,-500.0,0.00028493,2]
[314944004,1708691468148,-703.53,0.00028493,2]
[314944005,1708691468158,-431.25740452,0.00028493,2]
[314944006,1708691468167,-1080.87,0.00028493,2]
[314944007,1708691468177,-500.0,0.00028493,2]
[314944008,1708691468186,-796.04,0.00028493,2]
[314944009,1708691468196,-500.0,0.00028493,2]
[314944010,1708691468206,-500.0,0.00028493,2]
[314944011,1708691468216,-1602.12,0.00028493,2]
[314944012,1708691468226,-582.68,0.00028493,2]
[314944013,1708691468236,-1861.38,0.00028493,2]
[314944014,1708691468245,-500.0,0.00028493,2]
[314944015,1708691468255,-573.42,0.00028493,2]
[314944016,1708691468265,-1205.61,0.00028493,2]
[314944017,1708691468275,-500.0,0.00028493,2]
[314944018,1708691468286,-500.0,0.00028493,2]
[314944019,1708691468296,-1007.67,0.00028493,2]
[314944020,1708691468307,-607.11,0.00028493,2]
[314944021,1708691468316,-500.0,0.00028493,2]
[314944022,1708691468326,-915.01,0.00028493,2]
[314944023,1708691468336,-500.0,0.00028493,2]
[314944024,1708691468348,-702.81,0.00028493,2]
[314944025,1708691468358,-2194.26,0.00028493,2]
[314944026,1708691468368,-886.41,0.00028493,2]
[314944027,1708691468378,-500.0,0.00028493,2]
[314944028,1708691468388,-500.0,0.00028493,2]
[314944029,1708691468398,-500.0,0.00028493,2]
[314944030,1708691468413,-500.0,0.00028493,2]
[314944031,1708691468422,-500.0,0.00028493,2]
[314944032,1708691468432,-509.9,0.00028493,2]
[314944033,1708691468442,-786.77,0.00028493,2]
[314944034,1708691468456,-500.0,0.00028493,2]
[314944035,1708691468466,-500.0,0.00028493,2]
[314944036,1708691468476,-1189.9,0.00028493,2]
[314944037,1708691468486,-566.5,0.00028493,2]
[314944038,1708691468496,-4384.33,0.00028493,2]
[314944039,1708691468507,-500.0,0.00028493,2]
[314944040,1708691468517,-1816.86,0.00028493,2]
[314944041,1708691468527,-526.49,0.00028493,2]
[314944042,1708691468538,-1526.02,0.00028493,2]
[314944043,1708691468548,-500.0,0.00028493,2]
[314944044,1708691468558,-500.0,0.00028493,2]
[314944045,1708691468568,-1388.33,0.00028493,2]
[314944046,1708691468579,-500.0,0.00028493,2]
[314944047,1708691468589,-2474.45,0.00028493,2]
[314944048,1708691468602,-500.0,0.00028493,2]
[314944049,1708691468611,-5329.91,0.00028493,2]
[314944050,1708691468621,-533.86,0.00028493,2]
[314944051,1708691468632,-632.58,0.00028493,2]
[314944052,1708691468641,-500.0,0.00028493,2]
[314944053,1708691468651,-314.16384104,0.00028493,2]
[314944054,1708691468662,-503.34,0.00028493,2]
[314944055,1708691468672,-970.3,0.00028493,2]
[314944056,1708691468682,-500.0,0.00028493,2]
[314944057,1708691468693,-1854.49,0.00028493,2]
[314944058,1708691468703,-551.57110463,0.00028493,2]
[314944059,1708691468714,-661.23,0.00028493,2]
[314944060,1708691468723,-500.0,0.00028493,2]
[314944061,1708691468734,-500.0,0.00028493,2]
[314944062,1708691468744,-500.0,0.00028493,2]
[314944063,1708691468754,-500.0,0.00028493,2]
[314944064,1708691468765,-500.0,0.00028493,2]
[314944065,1708691468775,-500.0,0.00028493,2]
[314944066,1708691468785,-557.39,0.00028493,2]
[314944067,1708691468795,-500.0,0.00028493,2]
[314944068,1708691468806,-972.27,0.00028493,2]
[314944069,1708691468816,-2756.03,0.00028493,2]
[314944070,1708691468826,-873.84,0.00028493,2]
[314944071,1708691468837,-500.0,0.00028493,2]
[314944072,1708691468848,-1077.76,0.00028493,2]
[314944073,1708691468858,-500.0,0.00028493,2]
[314944074,1708691468867,-500.0,0.00028493,2]
[314944075,1708691468878,-1405.36,0.00028493,2]
[314944076,1708691468888,-500.0,0.00028493,2]
[314944077,1708691468898,-354.52873782,0.00028493,2]
[314944078,1708691468908,-833.0,0.00028493,2]
[314944079,1708691468919,-2513.22,0.00028493,2]
[314944080,1708691468929,-313.47055102,0.00028493,2]
[314944081,1708691468939,-857.16,0.00028493,2]
[314944082,1708691468949,-161.12589302,0.00028493,2]
[314944083,1708691468960,-1291.5,0.00028493,2]
[314944084,1708691468970,-514.89,0.00028493,2]
[314944085,1708691468980,-500.0,0.00028493,2]
[314944086,1708691468990,-700.66,0.00028493,2]
[314944087,1708691469000,-2031.36,0.00028493,2]
[314944088,1708691469010,-1009.63,0.00028493,2]
[314944089,1708691469020,-500.0,0.00028493,2]
[314944090,1708691469031,-516.55,0.00028493,2]
[314944091,1708691469040,-500.0,0.00028493,2]
[314944092,1708691469050,-500.0,0.00028493,2]
[314944093,1708691469060,-692.0,0.00028493,2]
[314944094,1708691469070,-500.0,0.00028493,2]
[314944095,1708691469080,-1085.28,0.00028493,2]
[314944096,1708691469090,-2188.23,0.00028493,2]
[314944097,1708691469102,-500.0,0.00028493,2]
[314944098,1708691469112,-592.24,0.00028493,2]
[314944099,1708691469121,-838.28,0.00028493,2]
[314944100,1708691469131,-500.0,0.00028493,2]
[314944101,1708691469140,-3195.13,0.00028493,2]
[314944102,1708691469150,-3378.46,0.00028493,2]
[314944103,1708691469160,-500.0,0.00028493,2]
[314944104,1708691469169,-587.56,0.00028493,2]
[314944105,1708691469181,-2460.31,0.00028493,2]
[314944106,1708691469540,-826.6,0.00028493,2]
[314944107,1708691469550,-1648.46,0.00028493,2]
[314944108,1708691469560,-500.0,0.00028493,2]
[314944109,1708691469570,-536.91,0.00028493,2]
[314944110,1708691469581,-3457.82,0.00028493,2]
[314944111,1708691469591,-500.0,0.00028493,2]
[314944112,1708691469602,-661.28,0.00028493,2]
[314944113,1708691469612,-500.0,0.00028493,2]
[314944114,1708691469621,-500.0,0.00028493,2]
[314944115,1708691469631,-500.0,0.00028493,2]
[314944116,1708691469641,-816.69,0.00028493,2]
[314944117,1708691469651,-1895.05,0.00028493,2]
[314944118,1708691469660,-2058.22,0.00028493,2]
[314944119,1708691469669,-500.0,0.00028493,2]
[314944120,1708691469679,-500.0,0.00028493,2]
[314944121,1708691469689,-3825.2,0.00028493,2]
[314944122,1708691469699,-500.0,0.00028493,2]
[314944123,1708691469709,-1955.25,0.00028493,2]
[314944124,1708691469719,-150.0,0.00028495,2]
[314944125,1708691469728,-347.0,0.000285,2]
[314944126,1708691469738,-1186.81,0.00028505,2]
[314944127,1708691469747,-150.0,0.00028508,2]
[314944128,1708691469757,-5146.52829871,0.00028521,2]
[314944129,1708691469767,-15344.76633829,0.00028521,2]
[314944130,1708691469777,-2682.69787784,0.00028526,2]
[314944131,1708691469786,-155.12,0.00028543,2]
[314944132,1708691469795,-150.0,0.00028548,2]
[314944133,1708691469805,-150.0,0.00028589,2]
[314944134,1708691469815,-6396.6476554,0.00028591,2]
[314944135,1708691469825,-1500.0,0.00028607,2]
[314944136,1708691469834,-20920.0433987,0.00028611,2]
[314944137,1708691469844,-181629.7298728,0.00028611,2]
[314944138,1708691469856,-150.0,0.00028617,2]
[314944139,1708691469866,-150.0,0.00028618,2]
[314944140,1708691469876,-500.0,0.0002863,2]
[314944141,1708691469885,-500.0,0.0002863,2]
[314944142,1708691469895,-500.0,0.0002863,2]
[314944143,1708691469909,-556.58,0.0002863,2]
[314944144,1708691469919,-500.0,0.0002863,2]
[314944145,1708691469930,-500.0,0.0002863,2]
[314944146,1708691469940,-526.85,0.0002863,2]
[314944147,1708691469950,-680.43,0.0002863,2]
[314944148,1708691469960,-500.0,0.0002863,2]
[314944149,1708691469970,-518.64,0.0002863,2]
[314944150,1708691469981,-500.0,0.0002863,2]
[314944151,1708691469990,-500.0,0.0002863,2]
[314944152,1708691470001,-500.0,0.0002863,2]
[314944153,1708691470011,-500.0,0.0002863,2]
[314944154,1708691470021,-510.19,0.0002863,2]
[314944155,1708691470031,-374.68402196,0.0002863,2]
[314944156,1708691470041,-500.0,0.0002863,2]
[314944157,1708691470050,-500.0,0.0002863,2]
[314944158,1708691470060,-500.0,0.0002863,2]
[314944159,1708691470069,-500.0,0.0002863,2]
[314944160,1708691470079,-500.0,0.0002863,2]
[314944161,1708691470089,-500.0,0.0002863,2]
[314944162,1708691470100,-500.0,0.0002863,2]
[314944163,1708691470110,-500.0,0.0002863,2]
[314944164,1708691470119,-500.0,0.0002863,2]
[314944165,1708691470129,-423.15066257,0.0002863,2]
[314944166,1708691470140,-422.72780095,0.0002863,2]
[314944167,1708691470150,-500.0,0.0002863,2]
[314944168,1708691470160,-500.0,0.0002863,2]
[314944169,1708691470170,-500.0,0.0002863,2]
[314944170,1708691470179,-500.0,0.0002863,2]
[314944171,1708691470189,-500.0,0.0002863,2]
[314944172,1708691470199,-500.0,0.0002863,2]
[314944173,1708691470209,-365.58867526,0.0002863,2]
[314944174,1708691470219,-500.0,0.0002863,2]
[314944175,1708691470229,-500.0,0.0002863,2]
[314944176,1708691470240,-500.0,0.0002863,2]
[314944177,1708691470250,-150.0,0.0002863,2]
[314944178,1708691470260,-500.0,0.0002863,2]
[314944179,1708691470270,-500.0,0.0002863,2]
[314944180,1708691470280,-866.95,0.0002863,2]
[314944181,1708691470290,-500.0,0.0002863,2]
[314944182,1708691470299,-550.89264644,0.0002863,2]
[314944183,1708691470310,-712.13,0.0002863,2]
[314944184,1708691470319,-592.17,0.0002863,2]
[314944185,1708691470329,-500.0,0.0002863,2]
[314944186,1708691470338,-500.0,0.0002863,2]
[314944187,1708691470349,-191.74874094,0.0002863,2]
[314944188,1708691470358,-467.28537838,0.0002863,2]
[314944189,1708691470368,-500.0,0.0002863,2]
[314944190,1708691470377,-500.0,0.0002863,2]
[314944191,1708691470387,-744.85,0.0002863,2]
[314944192,1708691470397,-500.0,0.0002863,2]
[314944193,1708691470408,-581.17,0.0002863,2]
[314944194,1708691470417,-563.33811363,0.0002863,2]
[314944195,1708691470431,-500.0,0.0002863,2]
[314944196,1708691470441,-500.0,0.0002863,2]
[314944197,1708691470450,-500.0,0.0002863,2]
[314944198,1708691470460,-1636.85,0.0002863,2]
[314944199,1708691470470,-500.0,0.0002863,2]
[314944200,1708691470479,-500.0,0.0002863,2]
[314944201,1708691470489,-500.0,0.0002863,2]
[314944202,1708691470500,-445.07,0.0002863,2]
[314944203,1708691470511,-618.55,0.0002863,2]
[314944204,1708691470521,-1133.5,0.0002863,2]
[314944205,1708691470531,-651.3,0.0002863,2]
[314944206,1708691470541,-7441.6,0.0002863,2]
[314944207,1708691470551,-500.0,0.0002863,2]
[314944208,1708691470561,-500.0,0.0002863,2]
[314944209,1708691470570,-500.0,0.0002863,2]
[314944210,1708691470580,-661.63,0.0002863,2]
[314944211,1708691470590,-500.0,0.0002863,2]
[314944212,1708691470601,-830.11,0.0002863,2]
[314944213,1708691470610,-966.94,0.0002863,2]
[314944214,1708691470621,-500.0,0.0002863,2]
[314944215,1708691470631,-500.0,0.0002863,2]
[314944216,1708691470641,-2440.4,0.0002863,2]
[314944217,1708691470650,-500.0,0.0002863,2]
[314944218,1708691470660,-500.0,0.0002863,2]
[314944219,1708691470669,-500.0,0.0002863,2]
[314944220,1708691470679,-500.0,0.0002863,2]
[314944221,1708691470689,-1120.79,0.0002863,2]
[314944222,1708691470699,-500.0,0.0002863,2]
[314944223,1708691470709,-1232.0,0.0002863,2]
[314944224,1708691470718,-500.0,0.0002863,2]
[314944225,1708691470728,-500.0,0.0002863,2]
[314944226,1708691470737,-1278.68,0.0002863,2]
[314944227,1708691470748,-772.26,0.0002863,2]
[314944228,1708691470757,-500.0,0.0002863,2]
[314944229,1708691470767,-861.43,0.0002863,2]
[314944230,1708691470776,-500.0,0.0002863,2]
[314944231,1708691470786,-276.31863656,0.0002863,2]
[314944232,1708691470797,-774.07,0.0002863,2]
[314944233,1708691470806,-2030.05,0.0002863,2]
[314944234,1708691470816,-4219.83,0.0002863,2]
[314944235,1708691470825,-500.0,0.0002863,2]
[314944236,1708691470835,-702.02,0.0002863,2]
[314944237,1708691470845,-500.0,0.0002863,2]
[314944238,1708691470856,-500.0,0.0002863,2]
[314944239,1708691470865,-500.0,0.0002863,2]
[314944240,1708691470875,-579.27,0.0002863,2]
[314944241,1708691470885,-500.0,0.0002863,2]
[314944242,1708691470894,-1628.05,0.0002863,2]
[314944243,1708691470904,-500.0,0.0002863,2]
[314944244,1708691470913,-500.0,0.0002863,2]
[314944245,1708691470923,-703.53,0.0002863,2]
[314944246,1708691470933,-1080.87,0.0002863,2]
[314944247,1708691470943,-211.61978481,0.0002863,2]
[314944248,1708691470953,-796.04,0.0002863,2]
[314944249,1708691470962,-500.0,0.0002863,2]
[314944250,1708691470972,-500.0,0.0002863,2]
[314944251,1708691470982,-1602.12,0.0002863,2]
[314944252,1708691470992,-582.68,0.0002863,2]
[314944253,1708691471002,-1861.38,0.0002863,2]
[314944254,1708691471012,-500.0,0.0002863,2]
[314944255,1708691471021,-573.42,0.0002863,2]
[314944256,1708691471031,-1205.61,0.0002863,2]
[314944257,1708691471041,-500.0,0.0002863,2]
[314944258,1708691471051,-500.0,0.0002863,2]
[314944259,1708691471061,-1007.67,0.0002863,2]
[314944260,1708691471071,-607.11,0.0002863,2]
[314944261,1708691471081,-500.0,0.0002863,2]
[314944262,1708691471090,-915.01,0.0002863,2]
[314944263,1708691471101,-500.0,0.0002863,2]
[314944264,1708691471110,-702.81,0.0002863,2]
[314944265,1708691471119,-2194.26,0.0002863,2]
[314944266,1708691471128,-886.41,0.0002863,2]
[314944267,1708691471137,-500.0,0.0002863,2]
[314944268,1708691471148,-219.34678,0.0002863,7]
[314944269,1708691471158,-500.0,0.0002863,2]
[314944270,1708691471167,-500.0,0.0002863,2]
[314944271,1708691471177,-180.904945,0.0002863,7]
[314944272,1708691471186,-500.0,0.0002863,2]
[314944273,1708691471196,-509.9,0.0002863,2]
[314944274,1708691471205,-500.0,0.0002863,2]
[314944275,1708691471215,-500.0,0.0002863,2]
[314944276,1708691471224,-500.0,0.0002863,2]
[314944277,1708691471234,-1189.9,0.0002863,2]
[314944278,1708691471244,-786.77,0.0002863,2]
[314944279,1708691471255,-566.5,0.0002863,2]
[314944280,1708691471266,-4384.33,0.0002863,2]
[314944281,1708691471276,-1816.86,0.0002863,2]
[314944282,1708691471286,-500.0,0.0002863,2]
[314944283,1708691471295,-526.49,0.0002863,2]
[314944284,1708691471305,-1526.02,0.0002863,2]
[314944285,1708691471314,-500.0,0.0002863,2]
[314944286,1708691471324,-500.0,0.0002863,2]
[314944287,1708691471333,-1388.33,0.0002863,2]
[314944288,1708691471343,-500.0,0.0002863,2]
[314944289,1708691471354,-2474.45,0.0002863,2]
[314944290,1708691471364,-500.0,0.0002863,2]
[314944291,1708691471373,-5329.91,0.0002863,2]
[314944292,1708691471383,-533.86,0.0002863,2]
[314944293,1708691471393,-632.58,0.0002863,2]
[314944294,1708691471403,-500.0,0.0002863,2]
[314944295,1708691471413,-503.34,0.0002863,2]
[314944296,1708691471423,-970.3,0.0002863,2]
[314944297,1708691471433,-500.0,0.0002863,2]
[314944298,1708691471443,-1854.49,0.0002863,2]
[314944299,1708691471454,-661.23,0.0002863,2]
[314944300,1708691471463,-500.0,0.0002863,2]
[314944301,1708691471473,-500.0,0.0002863,2]
[314944302,1708691471483,-500.0,0.0002863,2]
[314944303,1708691471493,-500.0,0.0002863,2]
[314944304,1708691471503,-500.0,0.0002863,2]
[314944305,1708691471515,-500.0,0.0002863,2]
[314944306,1708691471524,-557.39,0.0002863,2]
[314944307,1708691471534,-500.0,0.0002863,2]
[314944308,1708691471543,-972.27,0.0002863,2]
[314944309,1708691471552,-2756.03,0.0002863,2]
[314944310,1708691471562,-873.84,0.0002863,2]
[314944311,1708691471571,-500.0,0.0002863,2]
[314944312,1708691471580,-1077.76,0.0002863,2]
[314944313,1708691471589,-151.0,0.0002863,7]
[314944314,1708691471600,-500.0,0.0002863,2]
[314944315,1708691471608,-500.0,0.0002863,2]
[314944316,1708691471617,-1405.36,0.0002863,2]
[314944317,1708691471627,-500.0,0.0002863,2]
[314944318,1708691471636,-833.0,0.0002863,2]
[314944319,1708691471645,-2513.22,0.0002863,2]
[314944320,1708691471655,-857.16,0.0002863,2]
[314944321,1708691471664,-1291.5,0.0002863,2]
[314944322,1708691471673,-514.89,0.0002863,2]
[314944323,1708691471683,-700.66,0.0002863,2]
[314944324,1708691471694,-500.0,0.0002863,2]
[314944325,1708691471704,-2031.36,0.0002863,2]
[314944326,1708691471714,-1009.63,0.0002863,2]
[314944327,1708691471723,-500.0,0.0002863,2]
[314944328,1708691471733,-516.55,0.0002863,2]
[314944329,1708691471743,-500.0,0.0002863,2]
[314944330,1708691471752,-500.0,0.0002863,2]
[314944331,1708691471762,-692.0,0.0002863,2]
[314944332,1708691471771,-500.0,0.0002863,2]
[314944333,1708691471781,-1085.28,0.0002863,2]
[314944334,1708691471790,-2188.23,0.0002863,2]
[314944335,1708691471800,-500.0,0.0002863,2]
[314944336,1708691471809,-838.28,0.0002863,2]
[314944337,1708691471819,-592.24,0.0002863,2]